bitfinex-derivatives/quotes_SOLF0:USTF0_20250624
["timestamp","ask_amount","ask_price","bid_price","bid_amount"]
[1750726553005,17.3659921,143.4,143.36,6.9699]
[1750726553205,5.17925434,143.39,143.36,6.9699]
[1750726553403,5.17899219,143.38,143.33,3.51503414]
[1750726553600,39.586,143.43,143.38,6.9699]
[1750726553601,6.9683,143.41,143.38,6.9699]
[1750726553801,6.9683,143.41,143.35,3.51503414]
[1750726553802,10.39377043,143.4,143.35,3.51503414]
[1750726554006,5.17943574,143.39,143.35,3.51503414]
[1750726554208,5.21371749,143.4,143.37,6.9699]
[1750726554505,2.73052494,143.42,143.35,3.51503414]
[1750726554703,10.39363672,143.41,143.35,3.51503414]
[1750726554896,5.17936498,143.4,143.35,3.51503414]
[1750726555102,10.39259198,143.39,143.33,3.51503414]
[1750726555297,7.94488859,143.41,143.33,3.51503414]
[1750726555500,10.39385869,143.4,143.35,3.51503414]
[1750726555801,2.73056481,143.41,143.35,3.51503414]
[1750726555998,5.17927797,143.4,143.35,3.51503414]
[1750726556196,9.6982912,143.42,143.39,6.9694]
[1750726556398,10.38764855,143.41,143.37,3.51503414]
[1750726556706,5.17636927,143.4,143.38,6.9695]
[1750726556901,9.6982912,143.42,143.38,6.9695]
[1750726557104,10.39569249,143.41,143.38,6.9695]
[1750726557305,5.17523115,143.4,143.39,6.9694]
[1750726557902,40.09905028,143.43,143.37,3.51503414]
[1750726558207,10.39591055,143.42,143.37,3.51503414]
[1750726558405,5.17520278,143.41,143.37,3.51503414]
[1750726558604,2.73816876,143.43,143.37,3.51503414]
[1750726558904,10.39190101,143.42,143.37,3.51503414]
[1750726559106,5.17320705,143.41,143.37,3.51503414]
[1750726559303,2.73816876,143.43,143.37,3.51503414]
[1750726559304,5.21480777,143.42,143.37,3.51503414]
[1750726559507,2.73816876,143.44,143.39,3.51503414]
[1750726559803,10.3792131,143.43,143.41,6.9681]
[1750726560002,5.165097,143.42,143.41,6.9681]
[1750726560202,10.3817473,143.42,143.41,6.9681]
[1750726560402,5.16814713,143.42,143.41,6.9681]
[1750726560602,5.16814713,143.42,143.35,37.38]
[1750726560806,10.38077682,143.41,143.35,40.89503414]
[1750726561007,3.51503414,143.43,143.35,40.89503414]
[1750726561307,47.74093797,143.42,143.35,40.89503414]
[1750726561509,5.16776971,143.41,143.37,3.51503414]
[1750726561708,37.36,143.42,143.37,3.51503414]
[1750726561902,5.16834058,143.41,143.37,3.51503414]
[1750726562209,40.09777179,143.42,143.37,3.51503414]
[1750726562402,10.39141769,143.41,143.37,3.51503414]
[1750726562605,5.18986963,143.4,143.37,3.51503414]
[1750726562802,5.21635238,143.41,143.37,3.51503414]
[1750726563113,37.36,143.42,143.37,3.51503414]
[1750726563308,5.19226552,143.41,143.37,3.51503414]
[1750726563503,37.36,143.42,143.39,6.9691]
[1750726563808,5.19278214,143.41,143.37,3.51503414]
[1750726564003,7.96075346,143.44,143.37,3.51503414]
[1750726564309,13.15524131,143.43,143.4,6.9686]
[1750726564609,5.19448785,143.42,143.4,6.9686]
[1750726564806,2.73930036,143.43,143.4,6.9686]
[1750726565007,5.1993574,143.42,143.4,6.9686]
[1750726565208,5.22519528,143.43,143.4,6.9686]
[1750726565406,5.19691783,143.42,143.39,6.9694]
[1750726565603,12.19269528,143.43,143.39,6.9694]
[1750726565803,5.19660884,143.42,143.39,6.9694]
[1750726566104,6.9675,143.43,143.39,6.9694]
[1750726566310,6.9675,143.43,143.4,6.9689]
[1750726566906,14.93311081,143.44,143.4,6.9689]
[1750726567103,5.1994748,143.44,143.37,3.51503414]
[1750726567405,37.36,143.45,143.41,3.51503414]
[1750726567812,37.36,143.45,143.42,6.9679]
[1750726568517,6.9679,143.43,143.39,37.28]
[1750726568816,37.36,143.45,143.4,3.51503414]
[1750726569010,37.36,143.45,143.43,6.9675]
[1750726569211,5.17514678,143.47,143.42,3.51503414]
[1750726569612,50.4284001,143.48,143.42,3.51503414]
[1750726569813,54.64868278,143.48,143.44,6.9668]
[1750726570114,37.28,143.48,143.44,3.51503414]
[1750726570307,5.2289233,143.5,143.44,3.51503414]
[1750726570509,5.17581627,143.5,143.44,3.51503414]
[1750726570711,44.2438,143.51,143.46,3.51503414]
[1750726570912,6.37760041,143.57,143.48,3.51503414]
[1750726571214,5.16656895,143.58,143.54,3.51503414]
[1750726571419,13.13032643,143.6,143.57,6.9607]
[1750726571718,5.16795794,143.59,143.57,6.9607]
[1750726572017,5.16795794,143.59,143.54,37.28]
[1750726572018,5.1685381,143.6,143.54,37.28]
[1750726572218,5.1685381,143.6,143.5,37.28]
[1750726572414,8.68357224,143.59,143.5,37.26]
[1750726572612,6.9606,143.58,143.52,3.51503414]
[1750726572817,44.2206,143.58,143.52,3.51503414]
[1750726573013,37.26,143.58,143.5,40.77503414]
[1750726573518,37.26,143.58,143.53,6.9626]
[1750726574418,37.26,143.58,143.52,3.51503414]
[1750726575016,6.9608,143.57,143.52,3.51503414]
[1750726576117,6.9608,143.57,143.53,6.9623]
[1750726576517,44.2204,143.58,143.53,6.9623]
[1750726576817,37.26,143.58,143.53,6.9623]
[1750726577225,37.26,143.58,143.52,10.47803414]
[1750726577522,37.26,143.58,143.52,3.51503414]
[1750726578519,6.9611,143.57,143.53,6.9627]
[1750726579020,37.26,143.58,143.54,6.9622]
[1750726579421,37.26,143.58,143.53,3.49055366]
[1750726579621,37.26,143.58,143.55,6.9614]
[1750726581628,44.2203,143.58,143.54,6.9621]
[1750726583121,44.2203,143.58,143.53,10.45305366]
[1750726583624,6.9609,143.57,143.53,6.9625]
[1750726583823,37.26,143.58,143.52,6.9631]
[1750726584024,6.9614,143.56,143.52,6.9631]
[1750726585431,44.2206,143.58,143.53,6.9624]
[1750726586022,44.2206,143.58,143.54,6.9622]
[1750726586427,37.26,143.58,143.56,6.9611]
[1750726586827,37.26,143.58,143.53,3.49055366]
[1750726587730,44.2203,143.58,143.54,6.9618]
[1750726587926,37.26,143.58,143.53,3.49055366]
[1750726588131,37.26,143.58,143.56,6.9612]
[1750726588635,44.1986,143.62,143.58,6.9599]
[1750726588835,46.94836956,143.62,143.58,6.9599]
[1750726589034,37.24,143.62,143.57,3.49055366]
[1750726589830,44.1984,143.62,143.58,6.9599]
[1750726590032,44.1984,143.62,143.57,3.49055366]
[1750726590231,37.24,143.62,143.57,3.49055366]
[1750726590430,37.24,143.62,143.59,6.9594]
[1750726591124,37.24,143.62,143.6,6.959]
[1750726591326,602.16,143.64,143.57,3.49055366]
[1750726591533,37.24,143.65,143.58,3.49055366]
[1750726591729,6.9582,143.63,143.59,6.9598]
[1750726591930,3.49055366,143.62,143.54,3.49055366]
[1750726592130,3.49055366,143.6,143.52,40.73055366]
[1750726592333,6.9601,143.59,143.55,6.9617]
[1750726592934,6.9603,143.58,143.55,6.9617]
[1750726593735,6.9603,143.58,143.54,6.9621]
[1750726594331,6.9608,143.57,143.53,6.9625]
[1750726595030,3.49055366,143.58,143.51,4.5311]
[1750726595333,3.49055366,143.56,143.48,5.71035366]
[1750726595532,6.9625,143.54,143.5,6.9638]
[1750726595836,3.49055366,143.56,143.48,3.49055366]
[1750726595837,11.41112536,143.56,143.48,3.49055366]
[1750726596036,6.9624,143.54,143.5,6.964]
[1750726596438,6.9624,143.54,143.48,3.49055366]
[1750726596636,7.9205717,143.55,143.48,3.49055366]
[1750726596840,7.9205717,143.55,143.52,6.963]
[1750726597132,7.92837481,143.56,143.5,3.49055366]
[1750726597337,37.24,143.57,143.5,3.49055366]
[1750726597533,37.24,143.57,143.54,6.962]
[1750726598239,44.2007,143.57,143.53,6.9625]
[1750726598642,49.3706214,143.57,143.5,5.2375417]
[1750726598839,49.3706214,143.57,143.54,6.9622]
[1750726598840,37.24,143.57,143.54,6.9622]
[1750726599539,37.24,143.57,143.55,6.9614]
[1750726600535,37.24,143.57,143.56,6.9612]
[1750726600741,37.24,143.57,143.52,5.2375417]
[1750726601138,37.24,143.57,143.54,6.9619]
[1750726601344,40.00110399,143.57,143.54,6.9619]
[1750726601642,6.9606,143.58,143.54,6.9619]
[1750726602042,12.12938682,143.58,143.54,6.9619]
[1750726602839,12.12868682,143.59,143.55,6.9616]
[1750726603140,7.93251192,143.58,143.52,5.2375417]
[1750726603343,5.16878682,143.59,143.52,5.2375417]
[1750726603541,2.77247331,143.59,143.52,5.2375417]
[1750726603747,2.77247331,143.59,143.52,7.6533417]
[1750726603942,49.29365859,143.6,143.56,6.9612]
[1750726604140,49.29365859,143.6,143.52,7.6533417]
[1750726604141,42.33405859,143.6,143.54,5.2375417]
[1750726604339,37.16,143.6,143.54,5.2375417]
[1750726604540,6.37760041,143.66,143.57,5.2375417]
[1750726604748,18.48985747,143.65,143.57,5.2375417]
[1750726604944,18.5168675,143.64,143.57,5.2375417]
[1750726605140,2.77601837,143.63,143.57,5.2375417]
[1750726605349,6.958,143.63,143.59,6.9595]
[1750726605542,2.77604361,143.63,143.57,5.2375417]
[1750726605742,10.19031623,143.65,143.57,5.2375417]
[1750726605743,9.73364361,143.64,143.6,6.9589]
[1750726606045,2.77604361,143.63,143.55,42.3975417]
[1750726606345,45.0964765,143.62,143.53,138.64]
[1750726606546,13.1940182,143.61,143.53,138.64]
[1750726606846,6.9601,143.59,143.55,6.9614]
[1750726607044,9.73592013,143.59,143.55,6.9614]
[1750726607237,2.77554837,143.59,143.53,138.64]
[1750726607439,6.9604,143.58,143.54,6.9619]
[1750726607647,44.1004,143.58,143.54,6.9619]
[1750726608447,2.78074424,143.57,143.49,42.3775417]
[1750726608650,2.7810803,143.56,143.49,42.3775417]
[1750726608849,6.9615,143.56,143.52,6.963]
[1750726609145,5.2375417,143.57,143.47,2.312]
[1750726609348,5.2375417,143.55,143.47,2.312]
[1750726609546,39.92070516,143.54,143.47,2.312]
[1750726609752,37.14,143.54,143.47,2.312]
[1750726610049,9.74859886,143.53,143.49,6.9646]
[1750726610252,37.14,143.54,143.47,2.312]
[1750726610450,37.14,143.54,143.44,4.5129]
[1750726610451,18.25127615,143.53,143.44,4.5129]
[1750726610651,5.2375417,143.51,143.44,2.2101]
[1750726610853,39.92574894,143.5,143.44,2.2101]
[1750726611047,37.14,143.5,143.44,2.2101]
[1750726611442,2.78510177,143.49,143.41,5.2375417]
[1750726611642,8.35460758,143.48,143.4,2.312]
[1750726611846,8.35443097,143.47,143.4,2.312]
[1750726612049,39.94345057,143.46,143.42,6.9677]
[1750726612251,2.78345057,143.45,143.42,6.9677]
[1750726612444,37.16,143.46,143.42,6.9677]
[1750726613149,37.16,143.46,143.4,2.312]
[1750726613550,37.16,143.46,143.43,6.9672]
[1750726614345,2.77374768,143.45,143.42,6.9679]
[1750726614549,44.1262,143.46,143.4,2.312]
[1750726614746,2.7738905,143.45,143.4,2.312]
[1750726614948,2.77377664,143.44,143.36,37.16]
[1750726615154,2.77377664,143.43,143.36,37.16]
[1750726615353,39.5967,143.46,143.39,5.2375417]
[1750726615556,2.76995503,143.45,143.42,6.9677]
[1750726615753,37.16,143.46,143.42,6.9677]
[1750726615947,2.76981582,143.45,143.39,5.2375417]
[1750726616151,44.1265,143.46,143.39,5.2375417]
[1750726616354,2.77002956,143.45,143.39,5.2375417]
[1750726616549,44.1265,143.46,143.41,6.9681]
[1750726616849,2.77001911,143.45,143.41,6.9681]
[1750726617154,44.1265,143.46,143.41,6.9681]
[1750726617357,2.77003992,143.45,143.41,6.9681]
[1750726617554,44.1265,143.46,143.42,6.9679]
[1750726617756,37.16,143.46,143.42,6.9679]
[1750726618657,39.92234525,143.46,143.42,6.9679]
[1750726619260,37.16,143.46,143.42,6.9679]
[1750726619553,44.1261,143.46,143.42,6.9679]
[1750726619856,46.88883174,143.46,143.42,6.9679]
[1750726620559,37.16,143.46,143.43,6.9674]
[1750726620758,37.16,143.46,143.38,5.2375417]
[1750726621159,46.88939343,143.46,143.41,6.9682]
[1750726621353,44.1264,143.46,143.38,5.2375417]
[1750726621555,2.76225316,143.45,143.36,42.3975417]
[1750726621755,7.99979486,143.44,143.34,9.9305417]
[1750726621950,7.4777417,143.44,143.34,9.9305417]
[1750726622157,7.4777417,143.44,143.37,6.97]
[1750726622457,7.4777417,143.44,143.34,9.9305417]
[1750726622458,10.23999486,143.44,143.34,9.9305417]
[1750726622759,7.4777417,143.44,143.34,9.9305417]
[1750726623059,10.23401261,143.44,143.34,9.9305417]
[1750726623253,7.4777417,143.44,143.34,9.9305417]
[1750726623558,6.9683,143.42,143.37,6.9701]
[1750726623756,37.18,143.41,143.37,6.9701]
[1750726623957,44.1486,143.41,143.37,6.9701]
[1750726624554,44.1486,143.41,143.36,6.9708]
[1750726624754,6.9691,143.4,143.36,6.9708]
[1750726625054,37.18,143.41,143.37,6.9704]
[1750726626555,37.18,143.41,143.34,4.693]
[1750726626761,44.1489,143.41,143.37,6.9702]
[1750726628158,6.969,143.4,143.36,6.9708]
[1750726628461,6.969,143.4,143.34,9.9305417]
[1750726628857,6.9698,143.39,143.35,6.9711]
[1750726629257,37.18,143.41,143.33,37.18]
[1750726629562,37.18,143.41,143.34,6.9718]
[1750726630159,6.97,143.39,143.34,6.9718]
[1750726630665,6.97,143.39,143.32,5.78476954]
[1750726630666,6.97,143.39,143.35,6.9713]
[1750726630865,10.46976954,143.4,143.32,5.78476954]
[1750726631063,3.50056954,143.4,143.32,5.78476954]
[1750726631962,6.9696,143.39,143.34,6.9717]
[1750726632162,6.9696,143.39,143.32,5.78476954]
[1750726632563,85.0,143.4,143.34,3.50056954]
[1750726632767,88.50056954,143.4,143.32,2.2842]
[1750726633068,3.50056954,143.38,143.3,39.332]
[1750726633268,6.9711,143.36,143.32,6.9726]
[1750726634168,6.9715,143.35,143.32,6.9726]
[1750726634369,6.9715,143.35,143.31,6.9732]
[1750726635366,6.9715,143.35,143.32,6.9728]
[1750726635766,6.9711,143.36,143.32,6.9728]
[1750726636773,6.9716,143.35,143.31,6.9733]
[1750726637070,3.50056954,143.36,143.27,40.62056954]
[1750726637264,85.0,143.35,143.27,40.62056954]
[1750726637870,85.0,143.35,143.29,6.9742]
[1750726638071,85.0,143.35,143.27,40.62056954]
[1750726638567,85.0,143.35,143.23,2.3707]
[1750726638568,3.50056954,143.3,143.23,2.3707]
[1750726638865,6.9757,143.27,143.22,6.9773]
[1750726639063,37.14,143.29,143.21,3.50056954]
[1750726639271,37.14,143.29,143.23,3.50056954]
[1750726639570,37.14,143.29,143.25,6.9759]
[1750726640271,37.14,143.29,143.23,3.50056954]
[1750726640566,37.14,143.29,143.25,3.50056954]
[1750726640764,37.14,143.32,143.29,6.9743]
[1750726640970,37.14,143.32,143.27,3.50056954]
[1750726641375,37.14,143.32,143.28,3.50056954]
[1750726641974,37.14,143.32,143.31,6.9734]
[1750726642172,44.1117,143.35,143.31,6.9734]
[1750726642375,37.14,143.35,143.32,6.9726]
[1750726642564,37.14,143.35,143.3,3.50056954]
[1750726643470,37.14,143.35,143.3,6.9735]
[1750726643471,6.9724,143.34,143.3,6.9735]
[1750726644267,37.14,143.35,143.25,2.2467]
[1750726644473,5.25447836,143.29,143.19,37.14]
[1750726644668,5.25447836,143.27,143.18,5.25447836]
[1750726644874,37.14,143.26,143.17,5.25447836]
[1750726645265,37.14,143.26,143.16,6.9376]
[1750726645266,5.25447836,143.25,143.16,6.9376]
[1750726646171,2.4111,143.26,143.16,6.9376]
[1750726646472,37.14,143.25,143.17,42.39447836]
[1750726647470,37.14,143.25,143.16,6.9376]
[1750726647471,5.25447836,143.21,143.12,62.0]
[1750726647776,5.25447836,143.19,143.11,4.6677]
[1750726647977,37.14,143.18,143.11,4.6677]
[1750726648177,44.1199,143.18,143.11,4.6677]
[1750726648472,5.25447836,143.17,143.11,4.6677]
[1750726648678,12.23477836,143.17,143.11,4.6677]
[1750726648970,37.14,143.18,143.11,4.6677]
[1750726649777,44.1199,143.18,143.11,4.6677]
[1750726652778,44.1199,143.18,143.11,11.6507]
[1750726653476,37.16,143.18,143.11,9.93501201]
[1750726653774,37.16,143.18,143.13,5.26731201]
[1750726654280,37.16,143.18,143.14,6.9812]
[1750726654481,6.9783,143.21,143.13,5.26731201]
[1750726654778,37.16,143.2,143.13,5.26731201]
[1750726654970,37.16,143.2,143.14,6.9816]
[1750726655381,44.1387,143.2,143.14,6.9816]
[1750726656481,44.1387,143.2,143.15,6.9811]
[1750726656680,37.16,143.2,143.13,5.26731201]
[1750726657282,37.16,143.2,143.15,6.9811]
[1750726657780,37.16,143.2,143.16,6.9805]
[1750726657982,6.9786,143.21,143.16,6.9805]
[1750726658180,44.1586,143.21,143.13,5.26731201]
[1750726658582,6.9778,143.22,143.17,6.9802]
[1750726658784,44.1578,143.22,143.15,5.26731201]
[1750726658982,37.8,143.22,143.18,6.9793]
[1750726661781,44.7778,143.22,143.18,6.9793]
[1750726663685,6.9783,143.21,143.18,6.9793]
[1750726663882,43.06731201,143.22,143.12,37.8]
[1750726664186,43.06731201,143.22,143.13,5.26731201]
[1750726664575,37.8,143.22,143.17,6.9802]
[1750726664975,6.9784,143.21,143.18,6.9796]
[1750726665179,37.8,143.22,143.15,5.26731201]
[1750726665979,6.9784,143.21,143.17,6.9798]
[1750726666190,6.9784,143.21,143.15,5.26731201]
[1750726666589,37.8,143.22,143.15,5.26731201]
[1750726667788,44.7782,143.22,143.18,6.9794]
[1750726670487,44.7782,143.22,143.16,5.26731201]
[1750726671082,44.7782,143.22,143.18,6.9794]
[1750726671389,6.9784,143.21,143.18,6.9794]
[1750726672089,44.7779,143.22,143.18,6.9794]
[1750726672590,6.9783,143.21,143.18,6.9794]
[1750726672889,37.8,143.22,143.13,5.26731201]
[1750726673292,6.979,143.2,143.16,6.9804]
[1750726673499,6.979,143.2,143.13,5.26731201]
[1750726673989,6.979,143.2,143.16,6.9804]
[1750726674680,6.979,143.2,143.17,6.9801]
[1750726674884,6.9784,143.21,143.15,5.26731201]
[1750726675093,37.8,143.22,143.18,6.9794]
[1750726675492,44.7779,143.22,143.18,6.9794]
[1750726676190,37.8,143.22,143.12,40.013]
[1750726676392,37.8,143.22,143.14,5.26731201]
[1750726676796,6.9794,143.19,143.15,6.9808]
[1750726677393,6.9794,143.19,143.16,6.9806]
[1750726677589,40.56152479,143.22,143.14,5.26731201]
[1750726677991,37.8,143.22,143.14,5.26731201]
[1750726678191,6.9786,143.21,143.17,6.9801]
[1750726678794,6.9788,143.2,143.17,6.9801]
[1750726678995,6.9788,143.2,143.16,6.9805]
[1750726680796,3.5092117,143.17,143.09,3.5092117]
[1750726681099,3.5092117,143.15,143.07,3.5092117]
[1750726681290,6.9825,143.13,143.09,6.984]
[1750726681797,6.9827,143.12,143.08,6.9844]
[1750726682296,6.9843,143.09,143.06,37.8]
[1750726682498,5.2702877,143.15,143.05,4.6313]
[1750726682499,37.8,143.12,143.05,4.6313]
[1750726682699,37.8,143.12,143.05,2.237]
[1750726683500,6.9837,143.1,143.05,2.237]
[1750726684198,6.9833,143.11,143.05,2.237]
[1750726684701,37.8,143.12,143.06,6.9854]
[1750726684996,37.8,143.12,143.05,2.237]
[1750726685196,37.8,143.12,143.07,6.9847]
[1750726685801,6.9831,143.11,143.07,6.9847]
[1750726686098,44.7828,143.12,143.08,6.9845]
[1750726687196,37.8,143.12,143.05,2.237]
[1750726687394,43.07049881,143.12,143.05,2.237]
[1750726687598,6.9841,143.1,143.05,9.2227]
[1750726687798,43.07049881,143.12,143.05,9.2227]
[1750726687999,2.77545086,143.11,143.05,9.2227]
[1750726688301,43.07049881,143.12,143.05,9.2227]
[1750726688503,6.9837,143.1,143.05,9.2227]
[1750726688706,5.19680184,143.11,143.02,37.8]
[1750726688897,10.3238419,143.1,143.02,37.8]
[1750726689096,2.76594006,143.09,143.02,37.8]
[1750726689300,5.19680184,143.1,143.03,5.27049881]
[1750726689601,45.33364098,143.14,143.07,5.27049881]
[1750726689800,2.75715718,143.13,143.07,5.27049881]
[1750726689997,37.38,143.14,143.07,5.27049881]
[1750726690401,44.3618,143.14,143.07,5.27049881]
[1750726691003,44.3618,143.14,143.09,6.984]
[1750726692099,9.73870106,143.13,143.09,6.984]
[1750726692298,6.9822,143.13,143.09,6.984]
[1750726692497,37.38,143.14,143.09,6.984]
[1750726692698,44.3618,143.14,143.09,6.984]
[1750726693094,44.3618,143.14,143.07,5.27049881]
[1750726693095,44.3618,143.14,143.1,6.9836]
[1750726693905,37.38,143.14,143.11,6.9831]
[1750726694202,37.38,143.14,143.07,7.65199881]
[1750726694407,90.18889563,143.17,143.13,6.9821]
[1750726694706,603.06,143.18,143.13,5.27049881]
[1750726694707,640.44,143.18,143.13,5.27049881]
[1750726694908,2.75699021,143.17,143.13,5.27049881]
[1750726695101,640.44,143.18,143.13,5.27049881]
[1750726695298,2.75701978,143.17,143.13,5.27049881]
[1750726695498,44.3598,143.18,143.13,5.27049881]
[1750726695706,37.38,143.18,143.13,5.27049881]
[1750726695903,37.38,143.18,143.15,6.9811]
[1750726696499,37.38,143.18,143.13,5.27049881]
[1750726696700,9.2251,143.2,143.16,6.9806]
[1750726697400,11.98156044,143.2,143.16,6.9806]
[1750726697600,44.3584,143.21,143.17,6.9799]
[1750726697904,47.11499453,143.21,143.17,6.9799]
[1750726698302,2.75541239,143.2,143.11,37.38]
[1750726698600,2.75541239,143.2,143.12,5.27049881]
[1750726699106,6.9796,143.19,143.12,5.27049881]
[1750726699502,6.9796,143.19,143.13,6.9818]
[1750726699699,6.9796,143.19,143.12,5.27049881]
[1750726699906,6.9798,143.18,143.12,5.27049881]
[1750726700204,2.75541239,143.2,143.12,5.27049881]
[1750726700704,6.9796,143.19,143.14,6.9816]
[1750726701702,40.13541239,143.21,143.12,5.27049881]
[1750726701902,2.75541239,143.2,143.12,5.27049881]
[1750726702402,40.13541239,143.21,143.12,5.27049881]
[1750726702596,5.26706151,143.19,143.08,4.6752]
[1750726702902,5.26706151,143.15,143.06,5.26706151]
[1750726703103,37.38,143.14,143.06,5.26706151]
[1750726703809,44.3618,143.14,143.09,6.9837]
[1750726704406,6.9824,143.13,143.08,6.9846]
[1750726704808,6.9824,143.13,143.07,6.9851]
[1750726705309,6.9826,143.12,143.06,5.26706151]
[1750726705507,6.9826,143.12,143.06,12.25216151]
[1750726705708,6.9826,143.12,143.06,6.9851]
[1750726706313,6.9831,143.11,143.06,6.9851]
[1750726706614,42.46422162,143.14,143.06,6.9851]
[1750726706812,6.9829,143.12,143.06,6.9851]
[1750726707416,6.9822,143.13,143.04,7.53806151]
[1750726708018,6.9822,143.13,143.06,5.26706151]
[1750726709015,6.9827,143.12,143.07,6.9847]
[1750726713721,6.9827,143.12,143.08,6.9845]
[1750726714924,6.9822,143.13,143.08,6.9845]
[1750726715419,39.7006,143.14,143.1,6.9834]
[1750726715620,37.38,143.14,143.1,6.9834]
[1750726716825,44.3617,143.14,143.1,6.9834]
[1750726717027,37.38,143.14,143.1,6.9834]
[1750726717328,44.3608,143.16,143.11,6.983]
[1750726717923,40.13637503,143.17,143.12,3.51232892]
[1750726718225,37.38,143.17,143.12,3.51232892]
[1750726718621,37.38,143.21,143.16,3.51232892]
[1750726719025,40.13916427,143.24,143.18,3.51232892]
[1750726719227,2.75916427,143.23,143.18,3.51232892]
[1750726719432,40.13712606,143.24,143.2,3.51232892]
[1750726720031,47.11422606,143.24,143.2,3.51232892]
[1750726720233,47.11422606,143.24,143.15,37.38]
[1750726720438,44.3571,143.24,143.17,5.26093699]
[1750726721040,44.3571,143.24,143.19,6.9788]
[1750726721429,6.9771,143.24,143.19,6.9788]
[1750726721740,40.03830158,143.24,143.2,6.9787]
[1750726722338,40.03889715,143.24,143.21,6.9782]
[1750726722538,37.28,143.24,143.21,6.9782]
[1750726722738,37.28,143.24,143.17,5.26079578]
[1750726723832,6.9773,143.23,143.19,6.9791]
[1750726724229,6.9773,143.23,143.17,5.26079578]
[1750726724533,6.9773,143.23,143.18,6.9795]
[1750726726443,37.28,143.24,143.17,5.26079578]
[1750726727046,44.2571,143.24,143.19,6.9788]
[1750726728146,44.2571,143.24,143.2,6.9787]
[1750726728743,37.28,143.24,143.2,6.9787]
[1750726728939,37.28,143.24,143.21,6.9782]
[1750726730249,37.28,143.24,143.2,6.9785]
[1750726730847,37.28,143.24,143.19,5.26079578]
[1750726731451,37.28,143.24,143.21,6.9781]
[1750726731848,37.28,143.24,143.19,5.26079578]
[1750726732044,37.26,143.27,143.23,6.9767]
[1750726732552,37.26,143.27,143.21,5.26079578]
[1750726733641,37.26,143.27,143.23,6.9768]
[1750726734553,44.2353,143.27,143.23,6.9768]
[1750726736253,37.26,143.27,143.24,6.9766]
[1750726736760,37.26,143.27,143.21,5.26079578]
[1750726737358,6.9746,143.29,143.21,5.26079578]
[1750726738561,6.9749,143.28,143.21,5.26079578]
[1750726739862,6.9745,143.29,143.21,5.26079578]
[1750726740465,6.9745,143.29,143.25,6.9762]
[1750726741659,37.26,143.3,143.26,6.9757]
[1750726741660,44.234,143.3,143.26,6.9757]
[1750726741865,37.26,143.3,143.23,5.26079578]
[1750726742464,37.26,143.3,143.24,3.50478977]
[1750726742960,37.26,143.3,143.24,10.48108977]
[1750726743355,6.9745,143.29,143.24,10.48108977]
[1750726743551,6.9745,143.29,143.25,6.9762]
[1750726743761,37.26,143.3,143.24,3.50478977]
[1750726744565,6.9749,143.28,143.22,3.50478977]
[1750726745759,6.9749,143.28,143.24,6.9764]
[1750726746864,6.9753,143.27,143.24,6.9764]
[1750726747366,37.26,143.3,143.24,6.9764]
[1750726749673,40.76478977,143.3,143.23,6.9771]
[1750726749869,3.50608318,143.29,143.21,3.50608318]
[1750726750166,3.50608318,143.27,143.2,8.17648318]
[1750726750369,37.2,143.26,143.2,8.17648318]
[1750726750971,44.176,143.26,143.22,6.9773]
[1750726752571,6.9763,143.25,143.21,6.978]
[1750726752775,6.9763,143.25,143.2,8.17648318]
[1750726753078,6.9763,143.25,143.21,6.9781]
[1750726754284,37.2,143.26,143.18,3.50608318]
[1750726754481,2.3921,143.25,143.18,3.50608318]
[1750726754881,5.89818318,143.25,143.19,6.9788]
[1750726755576,6.9775,143.23,143.19,6.9788]
[1750726756083,6.9775,143.23,143.2,6.9786]
[1750726756284,6.9769,143.24,143.2,6.9786]
[1750726757381,6.9773,143.23,143.2,6.9786]
[1750726758186,2.3921,143.25,143.21,6.978]